Cogmind - Beta 15 @@@ ROGUE MODE // 2025.07.14 @ 21:11:27 Player: SKIP Result: Destroyed by ND-GYD(R) with Subdweller Laser Performance ------------- Evolutions (0) 0 Regions Visited (2) 400 Robots Destroyed (30) 150 Value Destroyed (1001) 1001 Prototype IDs (3) 60 Alien Tech Used (0) 0 Bonus (0) 0 TOTAL SCORE: 1611 Bonus ------- None Cogmind --------- Core Integrity 0/250 Matter 296/300 Energy 200/200 System Corruption 4% Temperature Cool (6) Movement Treading (160) Location -10/Subcaves Parts ------- > --- POWER (1) -------- Subdweller Power Source > --- PROPULSION (2) --- Light Treads Light Treads > --- UTILITY (2) ------ Large Storage Unit Light Armor Plating > --- WEAPON (2) ------- Subdweller Machine Gun Subdweller Machine Gun > --- INVENTORY (15) --- Subdweller Power Source Subdweller Power Source Subdweller Monowheel Subdweller Monowheel Subdweller Monowheel Improved Heat Sink Subdweller Optics Subdweller Optics Subdweller Optics Signal Interpreter Hacking Suite Subdweller Beam Cannon Subdweller Shrapnel Launcher Subdweller Shrapnel Launcher Mining Laser Peak State ------------ > --- POWER ------------ Cooled Ion Engine > --- PROPULSION ------- Light Treads Light Treads > --- UTILITY ---------- Large Storage Unit Light Armor Plating > --- WEAPON ----------- Improved Medium Laser Improved Medium Laser > --- INVENTORY -------- Cooled Ion Engine Light Treads Wheel Compact Wheel Improved Heat Sink Signal Interpreter Light Armor Plating Light Armor Plating Light Armor Plating Hacking Suite Medium Laser Particle Gun Light Cannon Grenade Launcher Mining Laser [Rating: 15] Favorites ----------- Power Cooled Ion Engine Engine Cooled Ion Engine Propulsion Light Treads Treads Light Treads Utility Light Armor Plating Device Improved Heat Sink Storage Large Storage Unit Protection Light Armor Plating Weapon Particle Gun Energy Gun Particle Gun Ballistic Gun Subdweller Machine Gun Special Weapon Mining Laser Build | -11 -10 -10 ------- Run | Yrd Mat Sub Slots Evolved . | . . . Power . | . . . Propulsion . | . . . Utility . | . . . Weapon . | . . . Parts Attached 28 | 5 12 11 Power 5 | . 3 2 Engine 5 | . 3 2 Core . | . . . Reactor . | . . . Propulsion 3 | 2 . 1 Treads 3 | 2 . 1 Leg . | . . . Wheel . | . . . Hover . | . . . Flight . | . . . Utility 8 | 1 5 2 Device 2 | . 2 . Storage 3 | 1 2 . Processor . | . . . Hackware . | . . . Protection 3 | . 1 2 Artifact . | . . . Weapon 12 | 2 4 6 Energy Gun 8 | 1 4 3 Energy Cannon . | . . . Ballistic Gun 3 | 1 . 2 Ballistic Cannon . | . . . Launcher . | . . . Special Weapon 1 | . . 1 Impact Weapon . | . . . Slashing Weapon . | . . . Piercing Weapon . | . . . Special Melee Weapon . | . . . Unidentified Prototypes 1 | . 1 . Parts Lost 2 | . . 2 Power 1 | . . 1 Propulsion 1 | . . 1 Utility . | . . . Weapon . | . . . Highest Loss Streak 1 | . . 1 To Critical Strikes . | . . . Average Backups 12 | 5 10 14 Power 1 | 1 1 1 Propulsion 2 | 1 3 2 Utility 4 | . 3 6 Weapon 3 | 1 2 4 Tool/Special . | . . . Unused Backups 27 | . 6 21 Power 4 | . 1 3 Propulsion 7 | . 2 5 Utility 8 | . 1 7 Weapon 8 | . 2 6 Tool/Special . | . . . Average Slot Usage (%) 98 | . 98 100 Engine 13 | . 13 14 Treads 27 | . 27 28 Device 2 | . 3 . Storage 14 | . 14 14 Protection 11 | . 9 14 Energy Gun 24 | . 25 21 Ballistic Gun 3 | . 2 6 Peak Build Rating 15 | 5 13 15 Average Rating 11 | 3 10 13 On Entrance 6 | . 5 13 Naked Turns . | . . . Heaviest Build 39 | 9 36 39 Greatest Support 40 | 40 40 40 Greatest Overweight (x) . | . . . Average Overweight (x) . | . . . Largest Inventory Capacity 15 | 8 15 15 Average Capacity 13 | 7 12 15 Most Carried 15 | 8 15 15 Average Carried 12 | 5 10 14 Final Capacity 15 | 8 15 15 Final Carried 15 | 7 15 15 Class Distribution -------------------- 85% | Mutant 14% | Scavenger-Mutant Dominant Class ---------------- Mutant | -10/Materials Mutant | -10/Subcaves Resources | -11 -10 -10 ----------- Run | Yrd Mat Sub Matter Collected 663 | 194 256 213 Remotely . | . . . Salvage Created 1102 | . 506 596 Parts 68 | . 26 42 Haulers Intercepted 2 | . 2 . Recyclers Shooed . | . . . Parts Field Recycled . | . . . Retrieved Matter . | . . . Parts Self-Destructed 16 | . . 16 Prevented . | . . . Kills | -11 -10 -10 ------- Run | Yrd Mat Sub Combat Hostiles Destroyed 26 | . 10 16 Guns 25 | . 9 16 Classes Destroyed 7 | . 4 3 Hauler 2 | . 2 . Operator 1 | . 1 . Watcher 1 | . 1 . Swarmer 2 | . . 2 Grunt 12 | . 10 2 Sentry 1 | . . 1 Subdweller 11 | . . 11 Best Kill Streak 3 | . 2 3 Combat Bots Only 3 | . 2 3 Max Kills in Single Turn 1 | . 1 1 Gunslinging . | . . . Exploded . | . . . Melee . | . . . Uniques/NPCs Destroyed . | . . . Combat | -11 -10 -10 -------- Run | Yrd Mat Sub Hostile Shots Fired 109 | . 41 68 Missed 27 | . 12 15 Hits 82 | . 29 53 Projectile 82 | . 29 53 AOE 2 | . . 2 Damage Taken 1335 | . 409 926 Core 260 | . 38 222 Absorbed by Shields . | . . . Regen/Repaired (Parts) 86 | . 86 . Core Remaining (%) 100 | 100 . . Volleys Fired 94 | . 42 52 Largest 2 | . 2 2 Hottest 130 | . 130 120 Shots Fired 174 | . 81 93 Gun 173 | . 81 92 Cannon . | . . . Launcher . | . . . Special 1 | . . 1 Kinetic 32 | . 20 12 Thermal 142 | . 61 81 Explosive . | . . . Electromagnetic . | . . . Robot Hit Streak 19 | . 17 19 Robot Miss Streak 5 | . 2 5 Penetration Max . | . . . Secondary Targets . | . . . Shots Hit Robots 123 | . 58 65 Core Hits 53 | . 22 31 Critical Kills . | . . . Critical Parts Destroyed . | . . . Critical Strikes 5 | . 2 3 Burn 4 | . 2 2 Destroy 1 | . . 1 Melee Attacks . | . . . Impact . | . . . Slashing . | . . . Piercing . | . . . Sneak Attacks . | . . . Combat Hostiles . | . . . Follow-up Attacks . | . . . Damage Inflicted 2046 | . 800 1246 Guns 2044 | . 798 1246 Cannons . | . . . Explosions . | . . . Melee . | . . . Ramming 2 | . 2 . Kinetic 396 | . 166 230 Thermal 1648 | . 632 1016 Explosive . | . . . Electromagnetic . | . . . Impact . | . . . Slashing . | . . . Piercing . | . . . Highest Corruption 4 | . 4 4 Average Corruption 4 | . 4 4 Corruption Purged . | . . . Corruption Blocked . | . . . Effects 43 | . 5 38 Message Errors 12 | . 1 11 Matter Fused 9 | . 2 7 Heat Flow Errors 8 | . . 8 Energy Discharges 4 | . . 4 Parts Fused 1 | . . 1 Data Loss (minor) 3 | . . 3 Data Loss (major) 2 | . 1 1 Misfires 1 | . . 1 Alerts 3 | . 1 2 Overload Shots . | . . . Overflow Damage . | . . . Projectiles . | . . . Explosions . | . . . Melee . | . . . Knockbacks . | . . . Impact . | . . . Kinetic . | . . . Secondary . | . . . Self-Inflicted Damage . | . . . Shots . | . . . Rammed 1 | . 1 . Targets Rammed 1 | . 1 . Kicked . | . . . Crushed . | . . . Highest Temperature 293 | . 186 293 Average Temperature 71 | . 59 87 Received Heat Transfer 387 | . 207 180 Siege Activations . | . . . Martial Activations . | . . . Shielding Activations . | . . . Robots Disrupted . | . . . Combat Hostiles . | . . . Robots Corrupted . | . . . Combat Hostiles . | . . . Parts Fried . | . . . Impact Corruptions . | . . . Robots Melted 2 | . 2 . Combat Hostiles 1 | . 1 . Parts Melted 5 | . 3 2 Heat Transferred 3587 | . 1813 1774 Parts Sabotaged . | . . . Parts Stolen . | . . . Parts Stripped . | . . . Power Chain Reactions . | . . . Alert | -11 -10 -10 ------- Run | Yrd Mat Sub Maximum Alert Level . | . . . Low Security (%) 100 | 100 100 . Level 1 . | . . . Level 2 . | . . . Level 3 . | . . . Level 4 . | . . . Level 5 . | . . . High Security . | . . . Max Security . | . . . Peak Influence 87 | . 87 . Initial . | . . . Average 15 | . 16 . Influence Increases 546 | . 361 185 Destroy 0b10 Robot/C 300 | . 200 100 Destroy 0b10 Robot/NC 20 | . 20 . Destroy Leader 66 | . 56 10 Successful Hack 38 | . 38 . Destroy Structure 2 | . 2 . Lose Combat Pursuer 120 | . 45 75 Influence Decreases 546 | . 361 185 Time Decay 546 | . 361 185 Squads Dispatched 3 | . 3 . Investigation 2 | . 2 . Extermination . | . . . Reinforcement 1 | . 1 . Assault . | . . . Garrison . | . . . Intercept . | . . . Searches Triggered . | . . . Construction Impeded . | . . . Haulers Reinforced . | . . . Active Scanning Responses . | . . . Cargo Convoy Interrupts . | . . . Stealth | -11 -10 -10 --------- Run | Yrd Mat Sub Distress Signals 4 | . 4 . Communications Jammed . | . . . Distress Signals . | . . . Times Spotted 40 | . 23 17 Peak Tracking Total 4 | . 3 4 Tactical Retreats 4 | . 2 2 Traps | -11 -10 -10 ------- Run | Yrd Mat Sub Traps Triggered 3 | . 3 . Indirectly . | . . . Trap Hack Attempts . | . . . Triggered . | . . . Disarmed . | . . . Reprogrammed . | . . . Reused . | . . . Traps Extracted . | . . . Installed . | . . . Triggered . | . . . Machines | -11 -10 -10 ---------- Run | Yrd Mat Sub Machines Disabled . | . . . Max in Single Turn . | . . . Machines Repaired . | . . . Machines Dismantled . | . . . Machines Sabotaged . | . . . Overloaded Fab Kills . | . . . Hacking | -11 -10 -10 --------- Run | Yrd Mat Sub Machines Accessed 10 | . 9 1 Terminals 8 | . 8 . Fabricators . | . . . Repair Stations 1 | . 1 . Recycling Units . | . . . Scanalyzers . | . . . Garrison Access . | . . . Total Hacks 35 | . 30 5 Successful 18 | . 13 5 Failed 17 | . 17 . Catastrophic . | . . . Database Lockouts . | . . . Manual 19 | . 19 . Terminals 27 | . 27 . Fabricators . | . . . Repair Stations 3 | . 3 . Recycling Units . | . . . Scanalyzers . | . . . Garrison Access . | . . . Terminal Hacks 8 | . 3 5 Record 5 | . . 5 Robot Analysis 1 | . 1 . Prototype ID Bank 1 | . 1 . Recall Investigation 1 | . 1 . Fabricator Hacks . | . . . Repair Station Hacks 2 | . 2 . Scan Component 1 | . 1 . Repair 1 | . 1 . Recycling Unit Hacks . | . . . Scanalyzer . | . . . Garrison Access Hacks . | . . . Unauthorized Hacks 8 | . 8 . Terminals 8 | . 8 . Assimilate 2 | . 2 . Botnet 6 | . 6 . Fabricators . | . . . Repair Stations . | . . . Recycling Units . | . . . Scanalyzers . | . . . Garrison Access . | . . . Data Cores Recovered . | . . . Used . | . . . Hacking Detections 9 | . 9 . Full Trace Events . | . . . Feedback Events . | . . . Feedback Blocked . | . . . Robot Schematics Acquired . | . . . Robots Built . | . . . Authchips . | . . . Time . | . . . Total Robot Build Rating . | . . . Part Schematics Acquired . | . . . Parts Built . | . . . Authchips . | . . . Time . | . . . Total Part Build Rating . | . . . Parts Repaired 1 | . 1 . Time 26 | . 26 . Parts Recycled . | . . . Recycled Matter . | . . . Retrieved Matter . | . . . Retrieved Components . | . . . Parts Scanalyzed . | . . . Part Schematics Acquired . | . . . Parts Damaged . | . . . Bothacking | -11 -10 -10 ------------ Run | Yrd Mat Sub Used RIF Installer . | . . . Robots Hacked . | . . . Non-combat . | . . . Combat . | . . . Robot Hacks Applied . | . . . Relay Couplers Released . | . . . Fabnet Peak Effective % . | . . . Robots Rewired . | . . . Allies Hacked . | . . . Hacks Repelled . | . . . Allies | -11 -10 -10 -------- Run | Yrd Mat Sub Total Allies . | . . . Largest Group . | . . . Highest-Rated Group . | . . . Highest-Rated Ally . | . . . Total Orders . | . . . Ally Attacks . | . . . Total Damage . | . . . Kills . | . . . Allies Corrupted . | . . . Allies Melted . | . . . Intel | -11 -10 -10 ------- Run | Yrd Mat Sub Active Infowar (turns) . | . . . Robot Analysis Total 1 | . 1 . Derelict Logs Recovered 1 | . . 1 Drone Launches . | . . . Drone Recoveries . | . . . Exploration | -11 -10 -10 ------------- Run | Yrd Mat Sub Turns Passed 3722 | 95 2088 1539 Spaces Moved 1878 | 57 1019 802 Core 11 | 11 . . Treads 1867 | 46 1019 802 Legs . | . . . Wheels . | . . . Hover . | . . . Flight . | . . . Fastest Speed 50 | 50 160 160 Average Speed 159 | 138 160 160 Slowest Speed 160 | 160 160 160 Overloaded Moves . | . . . Propulsion Burnouts . | . . . Robots Hopped . | . . . Potential Cave-ins . | . . . Cave-ins Triggered . | . . . Exploration Rate (%) 51 | 6 100 49 Regions Visited 2 Branch Regions 1 Pre-discovered Areas . | . . . Known Exits Taken . | . . . Unknown Exits Taken 2 | 1 1 . Scrap Searched . | . . . Spaces Dug . | . . . Terrain Destroyed 1 | . . 1 Melee . | . . . Projectile 1 | . . 1 AOE . | . . . Terrain Rammed . | . . . Walls Destroyed . | . . . Machines Disabled . | . . . Actions | -11 -10 -10 --------- Run | Yrd Mat Sub Total 2441 | 73 1401 967 Wait 359 | . 293 66 Move 1876 | 56 1018 802 Hop . | . . . Pick Up 45 | 12 17 16 Fast Attach 7 | . 4 3 Attach 9 | 5 3 1 Detach 1 | . 1 . Swap 16 | . 7 9 Drop 33 | . 15 18 Fire 94 | . 42 52 Melee . | . . . Ram . | . . . Kick . | . . . Crush 1 | . 1 . Escape Stasis . | . . . Rewire . | . . . Trap . | . . . Miscellaneous . | . . . Route ------- -11/Scrapyard -10/Materials (discovered 6 exits: [*Mat x3] / [*Min x2] / *Sub) -10/Subcaves (discovered 1 exit: Rec) History --------- Turn | Location | Event 3 | -11/Scrapyard | Discovered new exit (range 15) 96 | -11/Scrapyard | Entered Materials 301 | -10/Materials | Build established: Mutant 488 | -10/Materials | Discovered new exit (range 16) 720 | -10/Materials | Discovered new exit (range 9) 744 | -10/Materials | Discovered new exit (range 16) 1169 | -10/Materials | Discovered new exit (range 13) 1536 | -10/Materials | Discovered new exit (range 9) 1684 | -10/Materials | Discovered new exit (range 7) 1923 | -10/Materials | Repaired Lgt. Treads 2184 | -10/Materials | Entered Subcaves 2946 | -10/Subcaves | Core integrity fell below 50% 3061 | -10/Subcaves | Disturbed a concealed Subdweller 3062 | -10/Subcaves | Core integrity fell below 20% 3163 | -10/Subcaves | Ambushed by Subdweller buried in earth 3258 | -10/Subcaves | A swath of the cavern ceiling suddenly collapsed 3642 | -10/Subcaves | Identified exit to Recycling 3688 | -10/Subcaves | Visited Clippyterm 3693 | -10/Subcaves | Learned Factory stockpile data 3715 | -10/Subcaves | Build established: Scavenger-Mutant 3723 | -10/Subcaves | Destroyed by ND-GYD(R) with Subdweller Laser Last Messages --------------- queries and responses. --DD-NU8 >>Record "Trash" It looks like you need to recycle something, would you like help? Data stored: Recycling entrances (x1). >>Record! "Finders Keepers" It looks like you're interested in reappropriating Complex 0b10 components, would you like help? Data stored: Factory stockpile data. >>Record "Letterhead" It looks like you're writing a letter, sorry I don't know how to do that. >>Record "Optimus" It looks like you're curious about the current leader of 0bPrime. Optimus is well liked, but certainly not being up front with the UFD as a whole. 03700_ Subatomizers dissect the Wheel. 03703_ System corrupted: Heat flow error (+184). Map ----- +----------------------------------------------------+ | ?????????????????????????????????????????????????? | | ?????????????????????????????????????????????????? | | ?????????????????????????????????????????????????? | | ?????????????????????????????????????????????????? | | ?????????????????????????????????????????????????? | | ?????????????????????????????????????????????????? | | ?????????????????????????????????????????????????? | | ?????????????????????????????????????????????????? | | ?????????????????????????????????????????????????? | | ?????????????????????????????????????????????????? | | ?????????????????????????????????????????????????? | | ?????????????????????????????????????????????????? | | ?????????????????? ??????????????????????????????? | | ?????????????????? %?????????????????????????????? | | ??????????????????# ?????????????????????????????? | | ??????????????????# ?????????????????????????????? | | ?????????????????## ?????????????????????????????? | | ?????????????# ??# ????????????????????????????? | | ?????????????# ?" ??????#######???????????????? | | ?????????????? "? ??????#"""""#???????????????? | | ??????????????#""## ??????#""X""#???????????????? | | ???????????????"" ?????#" "#???????????????? | | ????????????????" ?????### ###???????????????? | | ?????????????????? ??????## ####??????????????? | | ???????????????????# ####### ########?????### | | ???????????????????# ##@ # # #"####?## | | ????????????????????# R ## """"## | | ????????????????????## # # # ## """# | | ???????????????????# # #### ## =### #### | | ???????????????????# ### &%=# ""& %* | | ???????????????"" ## #?# ""%## """ | | ????????????????? # ##### #### #"&### " | | ????????????????#? #???# # ! ### " | | ?????????????????# ##????# ##### % ##### | | ?????????????????# ??????# ##???# ##???#" | | ?????????????????#???????# #???## ####### | | ????????????????????????# #### % ##?# | | ????????????????????????# ### ## #??## | | ????????????????????????#####?#### #???##### | | ?????????????????????????????????# ###???????? | | ?????????????????????????????????# #?????????? | | ?????????????????????????????????# #?????????? | | ?????????????????????????????????#######?????????? | | ?????????????????????????????????????????????????? | | ?????????????????????????????????????????????????? | | ?????????????????????????????????????????????????? | | ?????????????????????????????????????????????????? | | ?????????????????????????????????????????????????? | | ?????????????????????????????????????????????????? | | ?????????????????????????????????????????????????? | +----------------------------------------------------+ Best States ------------- Heat Dissipation 39 Energy Generation 15 Energy Capacity 280 Matter Stores 300 Matter Capacity 300 Sight Range 16 Terrain Scan Density 10 Armor Coverage 150 Evasion (%) 50 Recoil Reduction 2 Item Schematics ----------------- None Robot Schematics ------------------ None Fabricated ------------ Nothing Repaired ---------- Lgt. Treads | 38% | -10/Materials Alien Tech Used ----------------- None Achievements -------------- None Challenges ------------ None Game ------ Seed GatlingStorageFlakker Manual? 0 Play Time 00:34:28 Cumulative 62.7 hours Start 2025.07.14 @ 20:38:14 End 2025.07.14 @ 21:11:27 Sessions 1 Manual Loads 0 Difficulty Rogue Special Mode None Game No. 100 Rogue 100 Adventurer 0 Explorer 0 Win Type - Total 0 Types 0/0/0/0/0/0/0/0/0/0 Lore% 47 Gallery% 32 Achievement% 29 Wizard Run 0 Options --------- Layout 1 ASCII 0 Keyboard 0 Movement Mouse Keybinds 0 Fullscreen 2 Font 24/Terminus Map View 50x35 Zoom Use 0% Tactical HUD 1 Map Filters NONE Filters NONE Steam 1 RUN: 4d49fb0d-fde4-47aa-aa3d-3a6b6e09ecf1